bitfinex-derivatives/quotes_BTCF0:USTF0_20250827
["timestamp","ask_amount","ask_price","bid_price","bid_amount"]
[1756325939746,0.02745,112110.0,112100.0,1.04983688]
[1756325939939,0.10938,112120.0,112110.0,0.2289249]
[1756325940139,0.14167,112120.0,112110.0,1.92048848]
[1756325940842,0.2308469,112120.0,112110.0,1.92048848]
[1756325941146,0.2328469,112120.0,112110.0,1.92048848]
[1756325941341,0.2004569,112120.0,112110.0,1.92048848]
[1756325941648,0.08649,112120.0,112110.0,1.92048848]
[1756325942146,0.12088,112120.0,112110.0,1.92048848]
[1756325942347,0.14567,112120.0,112110.0,1.92048848]
[1756325942543,0.004,112120.0,112110.0,2.17048848]
[1756325942846,0.004,112120.0,112110.0,2.61061206]
[1756325943349,0.004,112120.0,112110.0,2.17048848]
[1756325943748,0.004,112120.0,112110.0,2.16848848]
[1756325944146,0.003,112120.0,112110.0,2.16848848]
[1756325944547,0.001,112120.0,112110.0,2.16848848]
[1756325944748,0.002,112120.0,112110.0,2.16848848]
[1756325946054,0.0001,112130.0,112120.0,0.2269166]
[1756325946254,0.14177,112140.0,112130.0,0.2269087]
[1756325946445,0.14167,112140.0,112130.0,1.02783228]
[1756325946644,0.02745,112140.0,112130.0,1.02783228]
[1756325946852,1.64177,112150.0,112140.0,0.2269007]
[1756325947053,1.64167,112150.0,112140.0,1.55570428]
[1756325947350,1.64167,112150.0,112140.0,1.91650428]
[1756325947552,1.7308228,112150.0,112140.0,1.91650428]
[1756325947752,1.7308228,112150.0,112140.0,1.02782428]
[1756325947952,1.7308228,112150.0,112140.0,1.89197428]
[1756325948349,1.53145,112150.0,112140.0,1.91650428]
[1756325948552,0.03445,112150.0,112140.0,1.91650428]
[1756325948954,1.53445,112150.0,112140.0,1.91650428]
[1756325949156,0.03445,112150.0,112140.0,1.91650428]
[1756325949955,0.03445,112150.0,112140.0,1.4763807]
[1756325950261,0.03445,112150.0,112140.0,1.91650428]
[1756325950754,0.05924,112150.0,112140.0,0.93866358]
[1756325950957,0.05924,112150.0,112140.0,1.0894111]
[1756325950958,0.14867,112150.0,112140.0,1.0894111]
[1756325951158,0.14867,112150.0,112140.0,1.55406468]
[1756325951346,0.14867,112150.0,112140.0,1.91486468]
[1756325951551,0.14867,112150.0,112140.0,1.89001468]
[1756325951753,0.2378231,112150.0,112140.0,1.00329468]
[1756325951958,0.2378231,112150.0,112140.0,1.55374468]
[1756325952148,0.2378231,112150.0,112140.0,1.52881468]
[1756325952758,0.14867,112150.0,112140.0,1.91414468]
[1756325952952,0.14867,112150.0,112140.0,0.5877011]
[1756325953153,0.14867,112150.0,112140.0,1.91446468]
[1756325953562,0.14867,112150.0,112140.0,1.02782468]
[1756325953955,0.14367,112150.0,112140.0,1.4740211]
[1756325954258,0.14367,112150.0,112140.0,1.91414468]
[1756325954459,0.2328231,112150.0,112140.0,1.91414468]
[1756325954657,0.2328231,112150.0,112140.0,1.55334468]
[1756325954857,0.14367,112150.0,112140.0,1.91414468]
[1756325955058,0.2328231,112150.0,112140.0,0.5877011]
[1756325955257,0.2328231,112150.0,112140.0,1.55290468]
[1756325955457,0.14367,112150.0,112140.0,1.55290468]
[1756325955960,0.14367,112150.0,112140.0,1.91370468]
[1756325957960,0.02945,112150.0,112140.0,1.91370468]
[1756325959256,0.002,112150.0,112140.0,1.91370468]
[1756325959463,1.5001,112160.0,112150.0,0.0891531]
[1756325959659,0.0001,112170.0,112150.0,0.96550774]
[1756325959857,0.0001,112170.0,112160.0,2.35181236]
[1756325960062,0.02745,112170.0,112160.0,2.35181236]
[1756325960259,1.58463,112170.0,112160.0,2.35181236]
[1756325960458,1.6868472,112170.0,112160.0,1.02780878]
[1756325960661,1.6868472,112170.0,112160.0,1.91176878]
[1756325961161,1.547,112170.0,112160.0,1.91176878]
[1756325961357,1.6609272,112170.0,112160.0,1.02780878]
[1756325961560,2.3476072,112170.0,112160.0,0.02107]
[1756325961754,0.1929452,112160.0,112150.0,1.02327254]
[1756325961955,0.1929452,112160.0,112150.0,1.90747254]
[1756325962154,0.1038,112160.0,112150.0,1.93200254]
[1756325962360,0.02745,112160.0,112150.0,1.93200254]
[1756325962561,0.05984,112160.0,112150.0,1.93200254]
[1756325962759,0.08463,112160.0,112150.0,1.93200254]
[1756325963161,0.08563,112160.0,112150.0,1.93200254]
[1756325963368,0.08663,112160.0,112150.0,1.93200254]
[1756325963568,0.1757752,112160.0,112150.0,1.93200254]
[1756325963768,0.1757752,112160.0,112150.0,1.49187896]
[1756325963965,1.03373878,112160.0,112150.0,0.94074106]
[1756325964159,1.28373878,112160.0,112150.0,0.94074106]
[1756325964362,1.28373878,112160.0,112150.0,0.97547106]
[1756325964770,1.28373878,112160.0,112150.0,0.90339106]
[1756325965767,0.8436152,112160.0,112150.0,1.01660106]
[1756325967476,0.8436152,112160.0,112150.0,0.97547106]
[1756325967673,0.8436152,112160.0,112150.0,0.99831106]
[1756325967872,0.8436152,112160.0,112150.0,1.01660106]
[1756325968279,0.86812924,112160.0,112150.0,1.10575416]
[1756325969570,0.86812924,112160.0,112150.0,1.13028416]
[1756325969772,0.50732924,112160.0,112150.0,1.57040774]
[1756325970285,0.48478924,112160.0,112150.0,1.93120774]
[1756325970482,0.41835404,112160.0,112150.0,1.93120774]
[1756325970786,0.39564404,112160.0,112150.0,1.93120774]
[1756325971078,0.07051404,112160.0,112150.0,1.93120774]
[1756325971283,0.05396404,112160.0,112150.0,1.93120774]
[1756325972080,0.02651404,112160.0,112150.0,1.93120774]
[1756325972579,0.02651404,112160.0,112150.0,2.18120774]
[1756325972778,0.02651404,112160.0,112150.0,2.62133132]
[1756325972983,1.5001,112170.0,112160.0,0.2051959]
[1756325973185,1.5,112170.0,112160.0,1.00611948]
[1756325973980,0.1324546,112180.0,112170.0,0.205188]
[1756325974181,0.1669946,112180.0,112170.0,1.52835158]
[1756325974380,1.6669946,112180.0,112170.0,1.52835158]
[1756325974886,1.6669946,112180.0,112170.0,1.54829988]
[1756325975388,1.57786,112180.0,112170.0,1.54829988]
[1756325975785,1.60057,112180.0,112170.0,1.54829988]
[1756325975988,1.60357,112180.0,112170.0,1.54829988]
[1756325976291,1.7342,112180.0,112170.0,1.45904188]
[1756325976487,1.7342,112180.0,112170.0,1.54817988]
[1756325976789,1.7312,112180.0,112170.0,1.54817988]
[1756325976991,1.7312,112180.0,112170.0,1.1080563]
[1756325977282,1.7312,112180.0,112170.0,1.54917988]
[1756325978089,1.7312,112180.0,112170.0,1.1090563]
[1756325978591,1.7312,112180.0,112170.0,1.54961988]
[1756325979990,1.7312,112180.0,112170.0,1.1094963]
[1756325980183,1.7312,112180.0,112170.0,1.54961988]
[1756325981292,1.7312,112180.0,112170.0,0.66625988]
[1756325981590,1.7312,112180.0,112170.0,1.54913988]
[1756325982178,1.70849,112180.0,112170.0,1.54913988]
[1756325982481,1.71121,112180.0,112170.0,1.1090163]
[1756325982692,1.71121,112180.0,112170.0,1.54913988]
[1756325982991,0.21121,112180.0,112170.0,1.54913988]
[1756325983183,0.12208,112180.0,112170.0,1.90993988]
[1756325984189,0.1167402,112180.0,112170.0,1.1090163]
[1756325984388,0.2312002,112180.0,112170.0,0.1124683]
[1756325984585,0.67132378,112180.0,112170.0,0.9233083]
[1756325984792,0.67132378,112180.0,112170.0,0.0209483]
[1756325984793,1.28212378,112180.0,112170.0,0.0209483]
[1756325984987,0.86637049,112180.0,112170.0,0.9418683]
[1756325985189,0.86637049,112180.0,112170.0,1.1066064]
[1756325985383,1.30649407,112180.0,112170.0,1.1311364]
[1756325985583,0.86637049,112180.0,112170.0,1.1311364]
[1756325985796,0.86637049,112180.0,112170.0,1.0174683]
[1756325985991,1.30649407,112180.0,112170.0,0.9418683]
[1756325986193,1.30649407,112180.0,112170.0,0.9259483]
[1756325986392,1.30649407,112180.0,112170.0,0.9265883]
[1756325986892,1.30649407,112180.0,112170.0,0.8915883]
[1756325987389,0.0891381,112170.0,112160.0,0.0002]
[1756325987589,0.2312161,112160.0,112150.0,0.66133374]
[1756325987789,1.03213968,112160.0,112150.0,0.10021106]
[1756325988095,0.5920161,112160.0,112150.0,1.12569506]
[1756325988696,0.10743,112160.0,112150.0,1.59034864]
[1756325988891,0.14207,112160.0,112150.0,1.51102506]
[1756325989200,0.14207,112160.0,112150.0,1.95314864]
[1756325989800,0.2112261,112160.0,112150.0,1.15322506]
[1756325989996,0.08744,112160.0,112150.0,1.95414864]
[1756325990200,0.02761,112160.0,112150.0,1.95414864]
[1756325990406,0.02761,112160.0,112150.0,1.51402506]
[1756325990703,1.52761,112160.0,112150.0,1.95414864]
[1756325991499,1.52761,112160.0,112150.0,1.51402506]
[1756325991700,1.58496,112160.0,112150.0,1.95414864]
[1756325991895,1.52761,112160.0,112150.0,1.95414864]
[1756325992099,1.5,112160.0,112150.0,1.95414864]
[1756325992291,0.08754,112170.0,112160.0,0.1078361]
[1756325992492,0.02761,112170.0,112160.0,0.5865461]
[1756325992703,0.02761,112170.0,112160.0,1.02666968]
[1756325993109,0.04322,112170.0,112160.0,0.5865461]
[1756325993406,0.04322,112170.0,112160.0,1.02666968]
[1756325993793,0.04322,112170.0,112160.0,1.1327461]
[1756325993794,0.2312082,112170.0,112160.0,1.1327461]
[1756325994201,0.2312082,112170.0,112160.0,1.54833968]
[1756325994404,0.2312082,112170.0,112160.0,1.57286968]
[1756325995001,0.2312082,112170.0,112160.0,1.0765661]
[1756325995206,0.2312082,112170.0,112160.0,1.54833968]
[1756325995604,0.2312082,112170.0,112160.0,0.08142]
[1756325995801,1.28213178,112170.0,112160.0,0.94505]
[1756325996001,1.28213178,112170.0,112160.0,0.9767]
[1756325996201,1.28213178,112170.0,112160.0,1.0001]
[1756325996401,0.8420082,112170.0,112160.0,1.0892461]
[1756325996607,0.8420082,112170.0,112160.0,1.1137761]
[1756325997498,0.8420082,112170.0,112160.0,1.01711]
[1756325997806,1.28213178,112170.0,112160.0,0.001]
[1756325998005,1.28213178,112170.0,112160.0,0.90512]
[1756325998600,1.66213178,112170.0,112160.0,0.001]
[1756325999203,1.28213178,112170.0,112160.0,0.001]
[1756326000307,0.0891461,112160.0,112150.0,0.01999106]
[1756326000609,1.39060968,112160.0,112150.0,0.01979106]
[1756326000807,1.03060968,112160.0,112150.0,0.01979106]
[1756326001502,1.03060968,112160.0,112150.0,0.05909106]
[1756326001707,1.03060968,112160.0,112150.0,0.09424106]
[1756326002100,1.03060968,112160.0,112150.0,0.02279106]
[1756326003005,1.28060968,112160.0,112150.0,0.02279106]
[1756326004002,1.28060968,112160.0,112150.0,0.06009106]
[1756326004203,1.03060968,112160.0,112150.0,0.18139526]
[1756326004406,1.03160968,112160.0,112150.0,0.02079106]
[1756326004916,0.5914861,112160.0,112150.0,0.02079106]
[1756326005113,1.03160968,112160.0,112150.0,0.01979106]
[1756326006114,1.03060968,112160.0,112150.0,0.01979106]
[1756326006513,0.5904861,112160.0,112150.0,0.01979106]
[1756326006710,1.03060968,112160.0,112150.0,0.01979106]
[1756326007511,1.03060968,112160.0,112150.0,0.02079106]
[1756326008009,1.03060968,112160.0,112150.0,0.01979106]
[1756326008212,1.03160968,112160.0,112150.0,0.01979106]
[1756326012705,0.1448642,112150.0,112140.0,0.0002]
[1756326012909,0.2297022,112140.0,112130.0,0.0002]
[1756326013120,0.1740001,112130.0,112120.0,2.75987638]
[1756326013418,0.02861,112130.0,112120.0,3.47432996]
[1756326013612,0.10848,112140.0,112130.0,0.2289701]
[1756326013808,0.04379,112140.0,112130.0,0.66909368]
[1756326014014,0.1976394,112150.0,112140.0,0.2289622]
[1756326014214,0.2296994,112150.0,112140.0,1.56616578]
[1756326015107,0.08432,112150.0,112140.0,1.92696578]
[1756326015312,0.06553,112150.0,112140.0,1.92696578]
[1756326015514,0.02861,112150.0,112140.0,1.92896578]
[1756326015914,0.1177643,112150.0,112140.0,1.92996578]
[1756326017222,0.1177643,112150.0,112140.0,1.92796578]
[1756326017521,0.1177643,112150.0,112140.0,1.92996578]
[1756326018927,0.2056343,112150.0,112140.0,0.5927622]
[1756326019220,0.5904943,112150.0,112140.0,1.54163578]
[1756326019520,0.2296943,112150.0,112140.0,1.56616578]
[1756326020221,0.1329443,112150.0,112140.0,1.56516578]
[1756326020422,0.1177643,112150.0,112140.0,1.56516578]
[1756326020823,0.02861,112150.0,112140.0,1.92596578]
[1756326021122,0.02861,112150.0,112140.0,1.92496578]
[1756326021322,0.02961,112150.0,112140.0,1.92496578]
[1756326022526,0.1187642,112150.0,112140.0,1.92496578]
[1756326023226,0.001,112150.0,112140.0,1.92496578]
[1756326023530,0.02961,112150.0,112140.0,1.92496578]
[1756326023723,0.1509242,112150.0,112140.0,1.4848422]
[1756326023920,0.1187642,112150.0,112140.0,1.92496578]
[1756326024115,0.02961,112150.0,112140.0,1.92496578]
[1756326025026,0.0001,112160.0,112150.0,0.2289542]
[1756326025224,0.50144,112170.0,112160.0,0.2289463]
[1756326025423,0.50134,112170.0,112160.0,1.56098988]
[1756326025924,0.14054,112170.0,112160.0,1.56098988]
[1756326026118,0.2296783,112170.0,112160.0,1.56098988]
[1756326027026,0.2306783,112170.0,112160.0,1.1202663]
[1756326027227,0.2306783,112170.0,112160.0,1.56038988]
[1756326027423,0.2326783,112170.0,112160.0,1.56038988]
[1756326027820,0.11948,112170.0,112160.0,1.56038988]
[1756326028016,0.2076183,112170.0,112160.0,1.56038988]
[1756326028422,0.2076183,112170.0,112160.0,1.94134007]
[1756326028423,0.11848,112170.0,112160.0,1.94134007]
[1756326028623,0.4499097,112210.0,112160.0,1.94134007]
[1756326028624,0.0653618,112230.0,112210.0,0.1069]
[1756326028827,0.02442744,112220.0,112210.0,0.9663466]
[1756326029124,0.00152,112230.0,112220.0,0.2282586]
[1756326029422,0.00152,112230.0,112220.0,1.02918218]
[1756326029621,0.441,112260.0,112250.0,0.08237]
[1756326029821,0.03835,112270.0,112260.0,0.2036969]
[1756326030123,0.46277358,112280.0,112260.0,0.2036969]
[1756326030124,0.02265,112280.0,112260.0,1.02915048]
[1756326030325,0.02265,112280.0,112270.0,0.2282189]
[1756326030326,0.02757,112280.0,112270.0,0.2282189]
[1756326030517,0.12089,112280.0,112270.0,1.84324358]
[1756326030719,0.40378,112290.0,112280.0,0.089051]
[1756326030928,0.2099331,112290.0,112280.0,0.57928358]
[1756326031227,0.229141,112280.0,112270.0,0.09534]
[1756326031435,0.0192,112270.0,112260.0,0.37611]
[1756326031736,0.05755,112270.0,112260.0,1.92149096]
[1756326031931,0.11744,112270.0,112260.0,1.10043786]
[1756326032120,0.02857,112280.0,112270.0,0.2282189]
[1756326032334,0.02857,112280.0,112270.0,0.47543]
[1756326032335,0.14109,112280.0,112270.0,0.47543]
[1756326032527,0.14109,112280.0,112270.0,1.01137096]
[1756326032728,0.14109,112280.0,112270.0,1.92557096]
[1756326032931,0.4801408,112280.0,112270.0,0.01531]
[1756326033134,0.06592,112280.0,112270.0,0.2282187]
[1756326033328,0.001,112290.0,112280.0,0.2282108]
[1756326033537,0.001,112290.0,112280.0,0.5890108]
[1756326033732,0.001,112290.0,112280.0,2.01882176]
[1756326033929,0.06592,112300.0,112290.0,0.13916]
[1756326034130,0.09824,112300.0,112290.0,1.01137096]
[1756326034438,0.12089,112300.0,112290.0,1.57053096]
[1756326034635,0.12089,112300.0,112290.0,0.06971265]
[1756326034636,0.7573849,112300.0,112290.0,0.06971265]
[1756326034831,0.14009,112290.0,112280.0,0.58350096]
[1756326035038,0.2291408,112280.0,112270.0,0.01541]
[1756326035330,0.14009,112280.0,112270.0,0.11463]
[1756326035533,0.09824,112280.0,112270.0,1.10042966]
[1756326035736,0.02757,112290.0,112280.0,0.2282108]
[1756326035931,0.02757,112290.0,112280.0,1.5154908]
[1756326036129,0.3628,112300.0,112290.0,0.13916]
[1756326036426,0.3628,112300.0,112290.0,0.65057096]
[1756326036630,0.3608,112300.0,112290.0,0.65057096]
[1756326036835,0.5157549,112300.0,112290.0,0.13916]
[1756326037133,0.5899249,112300.0,112290.0,0.09524]
[1756326037332,0.09824,112300.0,112290.0,1.01137096]
[1756326037529,0.12089,112300.0,112290.0,1.01137096]
[1756326037730,0.5323671,112310.0,112300.0,0.03226]
[1756326037931,0.03648224,112320.0,112310.0,0.08121]
[1756326038134,0.1165886,112320.0,112310.0,1.95337096]
[1756326038733,0.1489086,112320.0,112310.0,1.08116]
[1756326038933,0.1165886,112320.0,112310.0,1.59257096]
[1756326039139,0.4498063,112340.0,112320.0,0.10446]
[1756326039333,0.05051,112350.0,112340.0,0.04895]
[1756326039640,0.5552757,112350.0,112340.0,0.02442]
[1756326039831,0.5552757,112350.0,112340.0,0.96914]
[1756326040024,0.48168605,112350.0,112330.0,0.04905]
[1756326040226,0.1944836,112340.0,112330.0,0.56046096]
[1756326040429,0.02757,112340.0,112330.0,0.92116096]
[1756326040633,0.46628,112340.0,112330.0,0.02442]
[1756326040931,0.10548,112340.0,112330.0,0.56036096]
[1756326041142,0.10548,112340.0,112330.0,0.53583096]
[1756326041340,0.10548,112340.0,112330.0,0.04895]
[1756326041631,0.08283,112340.0,112330.0,0.04895]
[1756326041829,0.4727436,112340.0,112320.0,0.40490513]
[1756326042028,0.10548,112330.0,112320.0,0.98605996]
[1756326042227,0.5552915,112330.0,112320.0,0.089329]
[1756326042432,0.8052915,112330.0,112320.0,0.01958513]
[1756326042837,0.46628,112330.0,112320.0,0.06853513]
[1756326043024,0.46628,112330.0,112320.0,0.57994609]
[1756326043230,0.46628,112330.0,112320.0,0.55541609]
[1756326043429,0.44763,112330.0,112320.0,0.57994609]
[1756326043629,0.3648,112330.0,112320.0,0.57994609]
[1756326043826,0.004,112330.0,112320.0,0.67933513]
[1756326044027,0.10948,112330.0,112320.0,0.04400513]
[1756326044230,0.08683,112330.0,112320.0,0.42933513]
[1756326044536,0.004,112330.0,112320.0,0.51835413]
[1756326044735,0.004,112330.0,112320.0,1.09980805]
[1756326045038,0.06389,112330.0,112320.0,1.26078905]
[1756326045241,0.06389,112330.0,112320.0,0.74937809]
[1756326045539,0.03157,112330.0,112320.0,1.34980845]
[1756326045840,0.08683,112330.0,112320.0,0.74937809]
[1756326046031,0.10948,112330.0,112320.0,0.47484809]
[1756326046237,0.5592915,112330.0,112320.0,1.00858513]
[1756326046437,0.47028,112330.0,112320.0,1.03300513]
[1756326046632,0.47028,112330.0,112320.0,1.54441609]
[1756326046832,0.47028,112330.0,112320.0,1.03300513]
[1756326047034,0.004,112330.0,112320.0,1.65796549]
[1756326047232,0.004,112330.0,112320.0,2.26876549]
[1756326047434,0.39734622,112360.0,112350.0,0.1339455]
[1756326047639,0.42966622,112360.0,112350.0,1.64151646]
[1756326047835,0.54130382,112360.0,112350.0,1.02058]
[1756326048050,0.56424382,112360.0,112350.0,0.99616]
[1756326048565,0.1944755,112350.0,112340.0,1.01804251]
[1756326048736,0.10548,112350.0,112340.0,1.05627495]
[1756326048935,0.10548,112350.0,112340.0,1.65668931]
[1756326049137,0.45886692,112360.0,112340.0,1.65668931]
[1756326049138,0.36987622,112360.0,112340.0,1.67721931]
[1756326049344,0.02767,112360.0,112350.0,1.00615576]
[1756326049535,0.02767,112370.0,112360.0,0.15412405]
[1756326049841,0.0001,112380.0,112370.0,0.133929]
[1756326050145,0.0001,112390.0,112380.0,0.133921]
[1756326050438,0.0001,112400.0,112390.0,0.04495]
[1756326050637,0.02757,112400.0,112390.0,1.9326734]
[1756326050837,0.27265,112400.0,112390.0,1.07710244]
[1756326051044,0.7776661,112400.0,112390.0,1.05657244]
[1756326051339,0.8052361,112400.0,112390.0,1.5679834]
[1756326051641,1.94373,112410.0,112400.0,0.02442]
[1756326051838,2.0552284,112410.0,112400.0,0.01391244]
[1756326052142,2.0552284,112410.0,112400.0,0.058856]
[1756326052143,1.58283,112410.0,112400.0,0.058856]
[1756326052335,2.0325782,112410.0,112400.0,0.038326]
[1756326052542,1.55022,112410.0,112400.0,0.058856]
[1756326052739,1.52757,112410.0,112400.0,0.058856]
[1756326052946,2.2825782,112410.0,112400.0,0.038326]
[1756326053246,2.0552282,112410.0,112400.0,1.072566]
[1756326053547,2.81863916,112410.0,112400.0,0.013906]
[1756326053742,2.3072282,112410.0,112400.0,0.013906]
[1756326054239,0.111614,112390.0,112380.0,1.06174077]
[1756326054444,0.555244,112390.0,112380.0,1.06174077]
[1756326054641,0.02757,112390.0,112380.0,2.08189363]
[1756326054838,0.02767,112400.0,112390.0,0.08141]
[1756326055044,0.1165261,112400.0,112390.0,0.44221]
[1756326055241,0.02294,112390.0,112360.0,0.02018715]
[1756326055434,0.02294,112390.0,112320.0,0.13804662]
[1756326055435,0.07316,112330.0,112320.0,0.13804662]
[1756326055634,0.07316,112330.0,112320.0,0.09951513]
[1756326055635,1.05590186,112330.0,112320.0,0.09951513]
[1756326055835,1.41670186,112330.0,112320.0,0.01958513]
[1756326056240,1.1552909,112330.0,112320.0,0.01958513]
[1756326056546,1.66470186,112330.0,112320.0,0.01958513]
[1756326056742,0.0890277,112310.0,112300.0,0.01993474]
[1756326056944,0.0890522,112280.0,112260.0,1.08588]
[1756326057248,0.5097495,112270.0,112260.0,1.08588]
[1756326057439,0.1489654,112250.0,112240.0,0.03226]
[1756326057745,0.05989,112250.0,112240.0,1.13746]
[1756326057945,0.0891686,112260.0,112250.0,0.05668]
[1756326057946,0.02677,112260.0,112250.0,0.05668]
[1756326058140,0.50902254,112260.0,112250.0,0.05668]
[1756326058340,1.04301836,112260.0,112250.0,0.01995091]
[1756326058945,1.29301836,112260.0,112250.0,0.01995091]
[1756326059143,1.2930835,112260.0,112250.0,0.01995091]
[1756326059338,1.29301836,112260.0,112250.0,0.01995091]
[1756326059542,0.1382554,112250.0,112240.0,0.0001]
[1756326059740,0.3608,112250.0,112240.0,0.056]
[1756326059940,0.90152096,112250.0,112240.0,0.056]
[1756326060143,0.1675733,112240.0,112230.0,0.02029963]
[1756326060346,0.05819,112220.0,112170.0,0.00011515]
[1756326060538,1.31787626,112180.0,112140.0,0.01977884]
[1756326060844,1.31787626,112180.0,112090.0,0.05382]
[1756326060845,0.0891786,112120.0,112090.0,0.056]
[1756326061039,2.45939756,112110.0,112100.0,0.05989]
[1756326061237,0.0892016,112090.0,112080.0,0.0834]
[1756326061446,0.96147587,112090.0,112080.0,0.05989]
[1756326061653,0.95347587,112090.0,112080.0,0.0834]
[1756326061944,1.02518959,112090.0,112080.0,0.0834]
[1756326062161,0.0892096,112080.0,112070.0,0.71465178]
[1756326062451,0.0882172,112070.0,112060.0,8e-08]
[1756326062641,0.0882172,112070.0,112060.0,0.0274]
[1756326062642,0.87221096,112070.0,112060.0,0.0274]
[1756326062841,0.87221096,112070.0,112050.0,4e-05]
[1756326062842,0.0892252,112060.0,112050.0,4e-05]
[1756326063043,0.0892422,112040.0,112030.0,0.00010601]
[1756326063246,0.0892422,112040.0,112000.0,0.04754509]
[1756326063247,0.0852581,112020.0,112000.0,0.04754509]
[1756326063451,1.18120233,112010.0,112000.0,0.03394884]
[1756326063651,0.0892886,111990.0,111970.0,0.0274]
[1756326063857,1.18120233,111980.0,111970.0,0.0001]
[1756326064053,1.18120233,111980.0,111950.0,0.05989]
[1756326064054,0.0882982,111970.0,111960.0,0.0274]
[1756326064262,0.4490982,111970.0,111960.0,0.0274]
[1756326064556,0.90870053,111970.0,111960.0,0.0274]
[1756326064761,0.0893128,111960.0,111950.0,0.03249]
[1756326064943,0.03249,111950.0,111940.0,0.20356833]
[1756326065145,0.0893406,111920.0,111900.0,0.02351]
[1756326065352,0.36089795,111910.0,111900.0,1.26651]
[1756326065647,0.82050028,111910.0,111900.0,1.26651]
[1756326065863,0.90985348,111910.0,111890.0,0.01993674]
[1756326066151,0.87608734,111900.0,111890.0,0.01993674]
[1756326066351,0.0893733,111880.0,111860.0,8.795e-05]
[1756326066555,1.35269955,111870.0,111860.0,8.795e-05]
[1756326066750,0.0893883,111860.0,111830.0,0.0274]
[1756326066950,0.3608,111840.0,111830.0,0.07995461]
[1756326067148,0.81590233,111840.0,111830.0,0.07995461]
[1756326067349,0.0894171,111830.0,111810.0,0.01994676]
[1756326067558,0.4502171,111830.0,111810.0,1.10498662]
[1756326067758,0.4502183,111820.0,111800.0,1.69488]
[1756326067945,0.36087619,111810.0,111800.0,1.69488]
[1756326068347,0.72167619,111810.0,111800.0,2.99423]
[1756326068553,0.72167619,111810.0,111800.0,2.97072]
[1756326068759,0.75657,111810.0,111800.0,2.97072]
[1756326069055,1.52553177,111810.0,111800.0,1.69488]
[1756326069254,1.059,111810.0,111800.0,1.69488]
[1756326069454,0.79141163,111810.0,111800.0,1.77828]
[1756326069654,0.4532064,111840.0,111800.0,2.38908]
[1756326069851,0.3608,111840.0,111820.0,0.0274]
[1756326070051,0.01824244,111850.0,111840.0,0.05091]
[1756326070257,1.8608,111880.0,111840.0,0.3608]
[1756326070451,0.52081574,111900.0,111860.0,0.02351]
[1756326070650,0.39011,111910.0,111870.0,1.3042]
[1756326070859,0.3608,111910.0,111900.0,0.05091]
[1756326071063,1.8608,111920.0,111910.0,0.05091]
[1756326071265,1.5874,111920.0,111900.0,0.0274]
[1756326071558,0.06428,111940.0,111920.0,0.02351]
[1756326071855,0.03497,111920.0,111910.0,0.0274]
[1756326072054,0.06437356,111920.0,111910.0,0.25]
[1756326072264,0.03506356,111920.0,111910.0,0.2774]
[1756326072452,9.356e-05,111920.0,111910.0,0.05091]
[1756326072653,0.06428,111900.0,111890.0,1.69704]
[1756326072858,0.0874,111900.0,111890.0,1.69704]
[1756326073054,0.53761572,111900.0,111890.0,1.69704]
[1756326073356,0.53761572,111900.0,111890.0,1.55704]
[1756326073357,0.42518144,111900.0,111890.0,1.55704]
[1756326073556,0.4794591,111900.0,111890.0,1.55704]
[1756326073854,0.4794591,111900.0,111880.0,1.79488]
[1756326074051,0.1194608,111920.0,111900.0,0.03249]
[1756326074256,0.1417792,111900.0,111880.0,1.71148]
[1756326074456,0.00010865,111890.0,111880.0,0.4442]
[1756326074855,0.450126,111930.0,111920.0,0.0834]
[1756326075059,0.0893252,111930.0,111920.0,0.4442]
[1756326075256,0.1187378,111940.0,111930.0,0.03249]
[1756326075467,0.03442,111940.0,111920.0,0.0274]
[1756326075754,0.08940231,111930.0,111920.0,1.43417]
[1756326075955,0.0893452,111910.0,111900.0,1.3776]
[1756326076161,0.1468895,111900.0,111890.0,0.0201223]
[1756326076360,0.5076895,111900.0,111890.0,0.0150123]
[1756326076553,0.0893804,111860.0,111850.0,0.01974883]
[1756326076858,0.50272321,111860.0,111850.0,0.01964883]
[1756326077050,0.0894043,111830.0,111820.0,0.0197672]
[1756326077256,0.50274504,111830.0,111820.0,0.0197672]
[1756326077455,0.1418583,111800.0,111790.0,0.02016606]
[1756326077656,0.089462,111760.0,111750.0,0.05999]
[1756326077856,0.089462,111760.0,111750.0,0.0834]
[1756326077857,0.450262,111760.0,111750.0,0.0834]
[1756326078160,0.450262,111760.0,111730.0,0.01809315]
[1756326078161,0.089478,111740.0,111730.0,0.01809315]
[1756326078361,0.089478,111740.0,111730.0,5e-08]
[1756326078362,0.86360455,111740.0,111730.0,5e-08]
[1756326078555,0.450278,111740.0,111730.0,0.02740005]
[1756326078858,0.450278,111740.0,111730.0,0.05989005]
[1756326079159,0.4502555,111770.0,111750.0,0.05989]
[1756326079360,0.41323,111780.0,111750.0,0.05989]
[1756326079361,0.4502475,111780.0,111770.0,0.05989]
[1756326079561,0.089438,111800.0,111780.0,0.05989]
[1756326079758,0.4502382,111790.0,111750.0,0.40241894]
[1756326079955,0.0894542,111770.0,111760.0,0.05091]
[1756326080155,0.0894622,111760.0,111750.0,0.01800894]
[1756326080364,0.5026922,111760.0,111750.0,0.01800894]
[1756326080560,0.7526922,111760.0,111750.0,0.01800894]
[1756326080755,0.0894782,111740.0,111730.0,5e-08]
[1756326081058,0.8110782,111740.0,111730.0,5e-08]
[1756326081258,1.0610782,111740.0,111730.0,5e-08]
[1756326081458,0.0895023,111710.0,111700.0,1.4698]
[1756326081659,0.4503023,111710.0,111700.0,4e-05]
[1756326081859,0.7527323,111710.0,111700.0,4e-05]
[1756326082369,0.0895345,111670.0,111660.0,1e-07]
[1756326082556,0.8635645,111670.0,111660.0,1e-07]
[1756326083563,0.4503345,111670.0,111660.0,1e-07]
[1756326084067,0.4806445,111670.0,111660.0,1e-07]
[1756326084271,0.7013345,111670.0,111660.0,1e-07]
[1756326084458,0.72120946,111670.0,111640.0,4e-05]
[1756326084766,0.72120946,111670.0,111590.0,1.69992]
[1756326084767,0.1127107,111600.0,111590.0,1.69992]
[1756326085058,0.50293204,111600.0,111590.0,1.69992]
[1756326085263,0.0895907,111600.0,111590.0,1.75981]
[1756326085562,0.450375,111620.0,111610.0,0.0834]
[1756326085760,0.3598,111620.0,111610.0,0.0834]
[1756326085964,0.0896404,111620.0,111610.0,0.6942]
[1756326086258,6.58e-05,111620.0,111610.0,0.3334]
[1756326086456,0.4504403,111620.0,111610.0,0.0834]
[1756326086653,0.3608,111630.0,111610.0,0.3334]